[Event "Titled Tuesday Blitz March 07 Early 2023"]
[White "Fabris, Alberto"]
[Black "Manukyan, Sargis V."]
[WhiteFideId "801348"]
[BlackFideId "13303465"]
[WhiteElo "2134"]
[BlackElo "2236"]
[Result "0-1"]
[Round "01"]
[TimeControl "180+2"]
[Date "2023.03.07"]
[WhiteClock "0:00:45"]
[BlackClock "0:01:46"]

1. d4 {[%clk 0:02:59]}  Nf6 {[%clk 0:02:59]} 2. Nf3 {[%clk 0:02:58]}  g6 {[%clk 0:02:59]} 3. c4 {[%clk 0:02:56]}  Bg7 {[%clk 0:02:59]} 4. Nc3 {[%clk 0:02:56]}  d5 {[%clk 0:02:59]} 5. e3 {[%clk 0:02:55]}  O-O {[%clk 0:02:58]} 6. Be2 {[%clk 0:02:53]}  c5 {[%clk 0:02:56]} 7. O-O {[%clk 0:02:53]}  dxc4 {[%clk 0:02:56]} 8. Bxc4 {[%clk 0:02:52]}  cxd4 {[%clk 0:02:56]} 9. Nxd4 {[%clk 0:02:47]}  Nc6 {[%clk 0:02:54]} 10. Nxc6 {[%clk 0:02:47]}  bxc6 {[%clk 0:02:55]} 11. e4 {[%clk 0:02:38]}  Qc7 {[%clk 0:02:51]} 12. Qe2 {[%clk 0:02:33]}  Ng4 {[%clk 0:02:45]} 13. g3 {[%clk 0:02:28]}  Ne5 {[%clk 0:02:46]} 14. Bf4 {[%clk 0:02:18]}  Qb6 {[%clk 0:02:43]} 15. Be3 {[%clk 0:02:13]}  Qa5 {[%clk 0:02:39]} 16. Rfd1 {[%clk 0:02:04]}  Bg4 {[%clk 0:02:37]} 17. Qf1 {[%clk 0:01:50]}  Nf3+ {[%clk 0:02:26]} 18. Kg2 {[%clk 0:01:39]}  Qh5 {[%clk 0:02:15]} 19. h4 {[%clk 0:01:38]}  Rab8 {[%clk 0:02:10]} 20. Bb3 {[%clk 0:01:34]}  Ne5 {[%clk 0:02:03]} 21. Rd2 {[%clk 0:01:25]}  Bf3+ {[%clk 0:02:02]} 22. Kg1 {[%clk 0:01:20]}  Bf6 {[%clk 0:02:01]} 23. Qh3 {[%clk 0:01:17]}  Bg4 {[%clk 0:01:59]} 24. Qg2 {[%clk 0:01:16]}  Nf3+ {[%clk 0:01:59]} 25. Kf1 {[%clk 0:01:13]}  g5 {[%clk 0:01:50]} 26. Ne2 {[%clk 0:00:45]}  Nxd2+ {[%clk 0:01:45]} 27. Bxd2 {[%clk 0:00:45]}  Bxe2+ {[%clk 0:01:46]} 0-1


[Site "https://www.chess.com"]

[Event "Titled Tuesday Blitz March 07 Early 2023"]
[White "Bilan, Danila"]
[Black "Lorenzo De La Riva, Lazaro"]
[WhiteFideId "24161918"]
[BlackFideId "2268809"]
[WhiteElo "2182"]
[BlackElo "2294"]
[Result "1-0"]
[Round "01"]
[TimeControl "180+2"]
[Date "2023.03.07"]
[WhiteClock "0:00:05"]
[BlackClock "0:00:03"]

1. d4 {[%clk 0:02:56]}  Nf6 {[%clk 0:02:59]} 2. Nf3 {[%clk 0:02:56]}  d5 {[%clk 0:02:59]} 3. c4 {[%clk 0:02:56]}  e6 {[%clk 0:02:58]} 4. Nc3 {[%clk 0:02:56]}  Be7 {[%clk 0:02:57]} 5. Bf4 {[%clk 0:02:55]}  O-O {[%clk 0:02:55]} 6. e3 {[%clk 0:02:55]}  b6 {[%clk 0:02:51]} 7. cxd5 {[%clk 0:02:48]}  exd5 {[%clk 0:02:49]} 8. Bd3 {[%clk 0:02:45]}  Bb7 {[%clk 0:02:47]} 9. Qc2 {[%clk 0:02:30]}  c5 {[%clk 0:02:44]} 10. O-O {[%clk 0:02:18]}  Nc6 {[%clk 0:02:42]} 11. a3 {[%clk 0:01:48]}  Rc8 {[%clk 0:02:34]} 12. Rac1 {[%clk 0:01:23]}  h6 {[%clk 0:02:26]} 13. Rfd1 {[%clk 0:01:03]}  Bd6 {[%clk 0:02:18]} 14. Bf5 {[%clk 0:00:50]}  Rb8 {[%clk 0:01:38]} 15. Bxd6 {[%clk 0:00:42]}  Qxd6 {[%clk 0:01:39]} 16. dxc5 {[%clk 0:00:42]}  bxc5 {[%clk 0:01:38]} 17. Nb5 {[%clk 0:00:42]}  Qd8 {[%clk 0:01:22]} 18. Qxc5 {[%clk 0:00:41]}  g6 {[%clk 0:01:20]} 19. Bh3 {[%clk 0:00:36]}  Ne4 {[%clk 0:00:59]} 20. Qc2 {[%clk 0:00:18]}  Qb6 {[%clk 0:00:50]} 21. Nbd4 {[%clk 0:00:15]}  Nxd4 {[%clk 0:00:44]} 22. Nxd4 {[%clk 0:00:15]}  f5 {[%clk 0:00:43]} 23. Qc7 {[%clk 0:00:13]}  Qxb2 {[%clk 0:00:38]} 24. Ne6 {[%clk 0:00:07]}  Qxf2+ {[%clk 0:00:37]} 25. Kh1 {[%clk 0:00:06]}  Rf7 {[%clk 0:00:15]} 26. Qxb8+ {[%clk 0:00:06]}  Kh7 {[%clk 0:00:16]} 27. Rc7 {[%clk 0:00:05]}  Ng5 {[%clk 0:00:08]} 28. Rxf7+ {[%clk 0:00:05]}  Nxf7 {[%clk 0:00:09]} 29. Qf8 {[%clk 0:00:05]}  h5 {[%clk 0:00:03]} 30. Qg7# {[%clk 0:00:05]} 1-0


[Site "https://www.chess.com"]

[Event "Titled Tuesday Blitz March 07 Early 2023"]
[White "Michalski, Olaf"]
[Black "Sokac, Marko"]
[WhiteFideId "1106740"]
[BlackFideId "14531356"]
[WhiteElo "2173"]
[BlackElo "2355"]
[Result "1-0"]
[Round "01"]
[TimeControl "180+2"]
[Date "2023.03.07"]
[WhiteClock "0:00:04"]
[BlackClock "0:00:03"]

1. d4 {[%clk 0:02:57]}  Nf6 {[%clk 0:02:59]} 2. c4 {[%clk 0:02:56]}  e5 {[%clk 0:02:59]} 3. dxe5 {[%clk 0:02:55]}  Ng4 {[%clk 0:02:59]} 4. Bf4 {[%clk 0:02:55]}  g5 {[%clk 0:02:50]} 5. Bg3 {[%clk 0:02:53]}  Bg7 {[%clk 0:02:50]} 6. Nf3 {[%clk 0:02:47]}  Nc6 {[%clk 0:02:49]} 7. Nc3 {[%clk 0:01:51]}  Ngxe5 {[%clk 0:02:47]} 8. e3 {[%clk 0:01:51]}  d6 {[%clk 0:02:44]} 9. h4 {[%clk 0:01:44]}  g4 {[%clk 0:02:43]} 10. Nxe5 {[%clk 0:01:43]}  Nxe5 {[%clk 0:02:43]} 11. Be2 {[%clk 0:01:37]}  h5 {[%clk 0:02:42]} 12. Qc2 {[%clk 0:01:23]}  c6 {[%clk 0:02:19]} 13. O-O-O {[%clk 0:01:23]}  O-O {[%clk 0:01:50]} 14. Qd2 {[%clk 0:01:07]}  Be6 {[%clk 0:01:45]} 15. Qxd6 {[%clk 0:00:43]}  Qxd6 {[%clk 0:01:42]} 16. Rxd6 {[%clk 0:00:42]}  Nxc4 {[%clk 0:01:38]} 17. Rxe6 {[%clk 0:00:36]}  Nxb2 {[%clk 0:01:14]} 18. Kxb2 {[%clk 0:00:32]}  fxe6 {[%clk 0:01:13]} 19. Bc4 {[%clk 0:00:24]}  Rae8 {[%clk 0:01:14]} 20. Kc2 {[%clk 0:00:20]}  b5 {[%clk 0:01:12]} 21. Bb3 {[%clk 0:00:18]}  a5 {[%clk 0:01:12]} 22. a4 {[%clk 0:00:18]}  b4 {[%clk 0:01:10]} 23. Ne4 {[%clk 0:00:18]}  Rf5 {[%clk 0:01:05]} 24. Rd1 {[%clk 0:00:13]}  Re7 {[%clk 0:00:22]} 25. Bc4 {[%clk 0:00:13]}  Be5 {[%clk 0:00:18]} 26. Nd6 {[%clk 0:00:11]}  Bxd6 {[%clk 0:00:15]} 27. Rxd6 {[%clk 0:00:11]}  Kf7 {[%clk 0:00:15]} 28. Rxc6 {[%clk 0:00:10]}  Rf6 {[%clk 0:00:05]} 29. Rd6 {[%clk 0:00:09]}  Rf5 {[%clk 0:00:05]} 30. Kb3 {[%clk 0:00:08]}  Rc5 {[%clk 0:00:05]} 31. Ra6 {[%clk 0:00:07]}  Rec7 {[%clk 0:00:05]} 32. Bxe6+ {[%clk 0:00:06]}  Ke7 {[%clk 0:00:05]} 33. Bxc7 {[%clk 0:00:07]}  Rxc7 {[%clk 0:00:06]} 34. Bc4 {[%clk 0:00:06]}  Rc5 {[%clk 0:00:04]} 35. Rh6 {[%clk 0:00:05]}  Rf5 {[%clk 0:00:05]} 36. f4 {[%clk 0:00:04]}  gxf3 {[%clk 0:00:06]} 37. gxf3 {[%clk 0:00:04]}  Rxf3 {[%clk 0:00:06]} 38. Rxh5 {[%clk 0:00:04]}  Rxe3+ {[%clk 0:00:07]} 39. Kb2 {[%clk 0:00:04]}  Rc3 {[%clk 0:00:06]} 40. Bb3 {[%clk 0:00:05]}  Rh3 {[%clk 0:00:06]} 41. Rxa5 {[%clk 0:00:04]}  Rxh4 {[%clk 0:00:06]} 42. Rd5 {[%clk 0:00:04]}  Rh2+ {[%clk 0:00:04]} 43. Kb1 {[%clk 0:00:02]}  Rh1+ {[%clk 0:00:05]} 44. Kc2 {[%clk 0:00:02]}  Rh2+ {[%clk 0:00:05]} 45. Kd3 {[%clk 0:00:02]}  Rh3+ {[%clk 0:00:05]} 46. Kc4 {[%clk 0:00:02]}  Rh4+ {[%clk 0:00:03]} 47. Rd4 {[%clk 0:00:02]}  Rh6 {[%clk 0:00:04]} 48. Kxb4 {[%clk 0:00:03]}  Rb6+ {[%clk 0:00:04]} 49. Ka3 {[%clk 0:00:03]}  Rb8 {[%clk 0:00:03]} 50. a5 {[%clk 0:00:03]}  Rb5 {[%clk 0:00:02]} 51. Ka4 {[%clk 0:00:03]}  Rb8 {[%clk 0:00:03]} 52. Bc4 {[%clk 0:00:03]}  Kf6 {[%clk 0:00:02]} 53. Bb5 {[%clk 0:00:03]}  Ke5 {[%clk 0:00:03]} 54. Rd1 {[%clk 0:00:04]}  Rc8 {[%clk 0:00:02]} 55. a6 {[%clk 0:00:04]}  Rc2 {[%clk 0:00:02]} 56. Ka5 {[%clk 0:00:04]}  Ra2+ {[%clk 0:00:03]} 57. Ba4 {[%clk 0:00:04]} 1-0


[Site "https://www.chess.com"]

[Event "Titled Tuesday Blitz March 07 Early 2023"]
[White "Samarth, J Rao"]
[Black "Osmak, Yuliia"]
[WhiteFideId "46652370"]
[BlackFideId "14101602"]
[WhiteElo "1564"]
[BlackElo "2271"]
[Result "1-0"]
[Round "01"]
[TimeControl "180+2"]
[Date "2023.03.07"]
[WhiteClock "0:00:10"]
[BlackClock "0:00:10"]

1. c4 {[%clk 0:02:35]}  f5 {[%clk 0:02:57]} 2. d4 {[%clk 0:02:32]}  Nf6 {[%clk 0:02:50]} 3. g3 {[%clk 0:02:32]}  d6 {[%clk 0:02:49]} 4. Nf3 {[%clk 0:02:31]}  g6 {[%clk 0:02:47]} 5. Bg2 {[%clk 0:02:30]}  Bg7 {[%clk 0:02:47]} 6. O-O {[%clk 0:02:29]}  O-O {[%clk 0:02:48]} 7. Nc3 {[%clk 0:02:30]}  Nc6 {[%clk 0:02:47]} 8. d5 {[%clk 0:02:30]}  Ne5 {[%clk 0:02:47]} 9. Nxe5 {[%clk 0:02:30]}  dxe5 {[%clk 0:02:48]} 10. f4 {[%clk 0:02:27]}  e4 {[%clk 0:02:44]} 11. Be3 {[%clk 0:02:22]}  e6 {[%clk 0:02:40]} 12. dxe6 {[%clk 0:02:16]}  Bxe6 {[%clk 0:02:41]} 13. Qb3 {[%clk 0:02:13]}  b6 {[%clk 0:02:40]} 14. Rfd1 {[%clk 0:02:08]}  Qe8 {[%clk 0:02:38]} 15. Nb5 {[%clk 0:02:04]}  Qf7 {[%clk 0:02:35]} 16. Rac1 {[%clk 0:02:03]}  Ng4 {[%clk 0:02:23]} 17. Bd4 {[%clk 0:02:02]}  Rfd8 {[%clk 0:02:03]} 18. Bxg7 {[%clk 0:01:55]}  Qxg7 {[%clk 0:02:04]} 19. e3 {[%clk 0:01:44]}  c5 {[%clk 0:01:48]} 20. h3 {[%clk 0:01:43]}  Nf6 {[%clk 0:01:47]} 21. Qc3 {[%clk 0:01:39]}  Nh5 {[%clk 0:01:27]} 22. Qxg7+ {[%clk 0:01:38]}  Nxg7 {[%clk 0:01:19]} 23. Nc7 {[%clk 0:01:35]}  Rac8 {[%clk 0:01:18]} 24. Nxe6 {[%clk 0:01:34]}  Nxe6 {[%clk 0:01:19]} 25. Kf2 {[%clk 0:01:32]}  Kf7 {[%clk 0:01:17]} 26. Ke2 {[%clk 0:01:32]}  Kf6 {[%clk 0:01:16]} 27. a3 {[%clk 0:01:27]}  h6 {[%clk 0:01:11]} 28. Rd2 {[%clk 0:01:19]}  Rxd2+ {[%clk 0:01:10]} 29. Kxd2 {[%clk 0:01:20]}  Rd8+ {[%clk 0:01:10]} 30. Kc2 {[%clk 0:01:18]}  Rd3 {[%clk 0:01:08]} 31. Re1 {[%clk 0:01:17]}  g5 {[%clk 0:01:03]} 32. Bf1 {[%clk 0:01:17]}  Rd6 {[%clk 0:01:02]} 33. Be2 {[%clk 0:01:17]}  Rd8 {[%clk 0:00:56]} 34. Rf1 {[%clk 0:01:16]}  gxf4 {[%clk 0:00:55]} 35. gxf4 {[%clk 0:01:11]}  Rg8 {[%clk 0:00:55]} 36. Kd2 {[%clk 0:01:07]}  Rg3 {[%clk 0:00:53]} 37. h4 {[%clk 0:01:06]}  Rg2 {[%clk 0:00:48]} 38. b4 {[%clk 0:00:52]}  Ke7 {[%clk 0:00:42]} 39. Ke1 {[%clk 0:00:42]}  Kd6 {[%clk 0:00:39]} 40. Rf2 {[%clk 0:00:40]}  Rg3 {[%clk 0:00:39]} 41. Kd2 {[%clk 0:00:39]}  Nd4 {[%clk 0:00:22]} 42. Bd1 {[%clk 0:00:30]}  a5 {[%clk 0:00:17]} 43. bxa5 {[%clk 0:00:24]}  bxa5 {[%clk 0:00:18]} 44. Rh2 {[%clk 0:00:23]}  Nf3+ {[%clk 0:00:17]} 45. Bxf3 {[%clk 0:00:23]}  exf3 {[%clk 0:00:17]} 46. Ke1 {[%clk 0:00:18]}  Rg2 {[%clk 0:00:13]} 47. Rxg2 {[%clk 0:00:15]}  fxg2 {[%clk 0:00:14]} 48. Kf2 {[%clk 0:00:15]}  Ke6 {[%clk 0:00:12]} 49. Kxg2 {[%clk 0:00:15]}  Kf6 {[%clk 0:00:12]} 50. h5 {[%clk 0:00:15]}  Ke6 {[%clk 0:00:12]} 51. Kf3 {[%clk 0:00:16]}  Kf6 {[%clk 0:00:13]} 52. e4 {[%clk 0:00:16]}  Ke6 {[%clk 0:00:13]} 53. Ke3 {[%clk 0:00:15]}  Kf6 {[%clk 0:00:13]} 54. exf5 {[%clk 0:00:13]}  Kxf5 {[%clk 0:00:14]} 55. Kf3 {[%clk 0:00:14]}  Kf6 {[%clk 0:00:14]} 56. Ke4 {[%clk 0:00:12]}  Ke6 {[%clk 0:00:14]} 57. f5+ {[%clk 0:00:13]}  Kf6 {[%clk 0:00:15]} 58. Kf4 {[%clk 0:00:13]}  Kf7 {[%clk 0:00:13]} 59. Ke5 {[%clk 0:00:14]}  Ke7 {[%clk 0:00:13]} 60. f6+ {[%clk 0:00:14]}  Kf7 {[%clk 0:00:14]} 61. Kf5 {[%clk 0:00:15]}  Kf8 {[%clk 0:00:14]} 62. Kg6 {[%clk 0:00:14]}  Kg8 {[%clk 0:00:14]} 63. f7+ {[%clk 0:00:12]}  Kf8 {[%clk 0:00:14]} 64. Kf6 {[%clk 0:00:09]}  a4 {[%clk 0:00:11]} 65. Kg6 {[%clk 0:00:10]}  Ke7 {[%clk 0:00:10]} 66. Kg7 {[%clk 0:00:10]} 1-0


[Site "https://www.chess.com"]

[Event "Titled Tuesday Blitz March 07 Early 2023"]
[White "Garakov, Mikhael"]
[Black "Ardila, Oscar Humberto"]
[WhiteFideId "4169034"]
[BlackFideId "4404742"]
[WhiteElo "2347"]
[BlackElo "1911"]
[Result "1-0"]
[Round "01"]
[TimeControl "180+2"]
[Date "2023.03.07"]
[WhiteClock "0:00:08"]
[BlackClock "0:00:04"]

1. e4 {[%clk 0:02:59]}  e5 {[%clk 0:02:55]} 2. Nf3 {[%clk 0:02:58]}  Nf6 {[%clk 0:02:54]} 3. Nxe5 {[%clk 0:02:57]}  d6 {[%clk 0:02:54]} 4. Nf3 {[%clk 0:02:57]}  Nxe4 {[%clk 0:02:54]} 5. d4 {[%clk 0:02:57]}  Be7 {[%clk 0:02:53]} 6. Bd3 {[%clk 0:02:56]}  Nf6 {[%clk 0:02:54]} 7. O-O {[%clk 0:02:53]}  Bg4 {[%clk 0:02:54]} 8. h3 {[%clk 0:02:44]}  Bh5 {[%clk 0:02:54]} 9. Nbd2 {[%clk 0:02:38]}  O-O {[%clk 0:02:53]} 10. Re1 {[%clk 0:02:38]}  Nbd7 {[%clk 0:02:53]} 11. Nf1 {[%clk 0:02:35]}  Re8 {[%clk 0:02:52]} 12. Ng3 {[%clk 0:02:35]}  Bg6 {[%clk 0:02:52]} 13. Nf5 {[%clk 0:02:32]}  Bf8 {[%clk 0:02:52]} 14. Bg5 {[%clk 0:02:24]}  Rxe1+ {[%clk 0:02:52]} 15. Qxe1 {[%clk 0:02:24]}  Qe8 {[%clk 0:02:52]} 16. Qb4 {[%clk 0:02:06]}  Qc8 {[%clk 0:02:45]} 17. Re1 {[%clk 0:01:59]}  Nd5 {[%clk 0:02:37]} 18. Qb3 {[%clk 0:01:41]}  N7b6 {[%clk 0:02:36]} 19. g4 {[%clk 0:01:40]}  h6 {[%clk 0:02:33]} 20. Bd2 {[%clk 0:01:34]}  Qd7 {[%clk 0:02:25]} 21. c4 {[%clk 0:01:27]}  Nf6 {[%clk 0:02:24]} 22. N3h4 {[%clk 0:00:35]}  Bh7 {[%clk 0:02:22]} 23. g5 {[%clk 0:00:35]}  hxg5 {[%clk 0:02:20]} 24. Bxg5 {[%clk 0:00:35]}  Re8 {[%clk 0:02:18]} 25. Rxe8 {[%clk 0:00:32]}  Nxe8 {[%clk 0:02:18]} 26. Kg2 {[%clk 0:00:23]}  d5 {[%clk 0:02:08]} 27. c5 {[%clk 0:00:22]}  Nc4 {[%clk 0:02:08]} 28. Qc2 {[%clk 0:00:22]}  Bxf5 {[%clk 0:01:58]} 29. Bxf5 {[%clk 0:00:21]}  Qb5 {[%clk 0:01:55]} 30. b3 {[%clk 0:00:21]}  Na5 {[%clk 0:01:50]} 31. Nf3 {[%clk 0:00:19]}  Nc6 {[%clk 0:01:46]} 32. Bd7 {[%clk 0:00:19]}  Nf6 {[%clk 0:01:41]} 33. Bxf6 {[%clk 0:00:19]}  gxf6 {[%clk 0:01:41]} 34. Qf5 {[%clk 0:00:18]}  Bg7 {[%clk 0:01:36]} 35. Qxd5 {[%clk 0:00:18]}  Ne7 {[%clk 0:01:25]} 36. Qxf7+ {[%clk 0:00:14]}  Kxf7 {[%clk 0:01:24]} 37. Bxb5 {[%clk 0:00:15]}  c6 {[%clk 0:01:22]} 38. Bc4+ {[%clk 0:00:15]}  Kg6 {[%clk 0:01:21]} 39. Nd2 {[%clk 0:00:12]}  Kf5 {[%clk 0:01:21]} 40. Kf3 {[%clk 0:00:10]}  Bh6 {[%clk 0:01:21]} 41. Ne4 {[%clk 0:00:10]}  Bf4 {[%clk 0:01:17]} 42. Nd6+ {[%clk 0:00:10]}  Kg5 {[%clk 0:01:01]} 43. h4+ {[%clk 0:00:10]}  Kxh4 {[%clk 0:00:58]} 44. Kxf4 {[%clk 0:00:11]}  b6 {[%clk 0:00:57]} 45. Nf5+ {[%clk 0:00:10]}  Nxf5 {[%clk 0:00:56]} 46. Kxf5 {[%clk 0:00:11]}  b5 {[%clk 0:00:03]} 47. Bxb5 {[%clk 0:00:08]}  cxb5 {[%clk 0:00:03]} 48. c6 {[%clk 0:00:08]}  a5 {[%clk 0:00:04]} 49. c7 {[%clk 0:00:08]} 1-0


[Site "https://www.chess.com"]

[Event "Titled Tuesday Blitz March 07 Early 2023"]
[White "Larina, Maria"]
[Black "Kokoszczynski, Jan"]
[WhiteFideId "24113182"]
[BlackFideId "1174460"]
[WhiteElo "1848"]
[BlackElo "2139"]
[Result "0-1"]
[Round "01"]
[TimeControl "180+2"]
[Date "2023.03.07"]
[WhiteClock "0:00:05"]
[BlackClock "0:00:08"]

1. e4 {[%clk 0:03:00]}  e5 {[%clk 0:02:57]} 2. Nf3 {[%clk 0:03:00]}  Nc6 {[%clk 0:02:56]} 3. Nc3 {[%clk 0:03:00]}  Nf6 {[%clk 0:02:56]} 4. Bb5 {[%clk 0:03:01]}  Bd6 {[%clk 0:02:44]} 5. d3 {[%clk 0:03:00]}  O-O {[%clk 0:02:40]} 6. a3 {[%clk 0:03:00]}  h6 {[%clk 0:02:34]} 7. O-O {[%clk 0:03:00]}  Re8 {[%clk 0:02:35]} 8. Re1 {[%clk 0:02:57]}  Bc5 {[%clk 0:02:14]} 9. h3 {[%clk 0:02:49]}  d6 {[%clk 0:02:14]} 10. Bxc6 {[%clk 0:02:43]}  bxc6 {[%clk 0:02:14]} 11. d4 {[%clk 0:02:43]}  exd4 {[%clk 0:02:13]} 12. Nxd4 {[%clk 0:02:44]}  Bd7 {[%clk 0:02:06]} 13. Bf4 {[%clk 0:02:32]}  a5 {[%clk 0:01:59]} 14. b3 {[%clk 0:02:25]}  Qe7 {[%clk 0:01:17]} 15. Qd3 {[%clk 0:02:20]}  Rad8 {[%clk 0:01:11]} 16. Rad1 {[%clk 0:02:19]}  Bxd4 {[%clk 0:01:02]} 17. Qxd4 {[%clk 0:02:20]}  c5 {[%clk 0:01:03]} 18. Qd3 {[%clk 0:02:15]}  Bc6 {[%clk 0:01:03]} 19. Nd5 {[%clk 0:01:27]}  Bxd5 {[%clk 0:01:02]} 20. exd5 {[%clk 0:01:28]}  Qd7 {[%clk 0:01:03]} 21. c4 {[%clk 0:01:22]}  Rb8 {[%clk 0:00:50]} 22. Qc3 {[%clk 0:01:13]}  Ne4 {[%clk 0:00:31]} 23. Qc2 {[%clk 0:01:05]}  Qf5 {[%clk 0:00:17]} 24. Be3 {[%clk 0:01:05]}  Re7 {[%clk 0:00:16]} 25. Re2 {[%clk 0:00:50]}  Rbe8 {[%clk 0:00:15]} 26. Rde1 {[%clk 0:00:50]}  Qg6 {[%clk 0:00:14]} 27. Bd2 {[%clk 0:00:37]}  Nxd2 {[%clk 0:00:12]} 28. Qxd2 {[%clk 0:00:37]}  Rxe2 {[%clk 0:00:11]} 29. Rxe2 {[%clk 0:00:38]}  Qb1+ {[%clk 0:00:10]} 30. Kh2 {[%clk 0:00:38]}  Rxe2 {[%clk 0:00:09]} 31. Qxe2 {[%clk 0:00:38]}  Qxb3 {[%clk 0:00:09]} 32. Qe8+ {[%clk 0:00:38]}  Kh7 {[%clk 0:00:10]} 33. Qe4+ {[%clk 0:00:38]}  g6 {[%clk 0:00:10]} 34. Qe7 {[%clk 0:00:35]}  Kg7 {[%clk 0:00:09]} 35. Qxc7 {[%clk 0:00:34]}  Qxc4 {[%clk 0:00:06]} 36. Qxd6 {[%clk 0:00:34]}  Qd4 {[%clk 0:00:07]} 37. f4 {[%clk 0:00:28]}  c4 {[%clk 0:00:06]} 38. Qe5+ {[%clk 0:00:21]}  Qxe5 {[%clk 0:00:06]} 39. fxe5 {[%clk 0:00:22]}  c3 {[%clk 0:00:07]} 40. d6 {[%clk 0:00:23]}  c2 {[%clk 0:00:06]} 41. d7 {[%clk 0:00:24]}  c1=Q {[%clk 0:00:06]} 42. d8=Q {[%clk 0:00:25]}  Qf4+ {[%clk 0:00:06]} 43. Kh1 {[%clk 0:00:22]}  Qxe5 {[%clk 0:00:06]} 44. Qd3 {[%clk 0:00:18]}  h5 {[%clk 0:00:06]} 45. Kg1 {[%clk 0:00:15]}  Qc5+ {[%clk 0:00:05]} 46. Kh1 {[%clk 0:00:15]}  Qc1+ {[%clk 0:00:05]} 47. Kh2 {[%clk 0:00:15]}  Qf4+ {[%clk 0:00:06]} 48. Kg1 {[%clk 0:00:14]}  a4 {[%clk 0:00:04]} 49. Qc3+ {[%clk 0:00:13]}  Qf6 {[%clk 0:00:03]} 50. Qd3 {[%clk 0:00:13]}  Qc6 {[%clk 0:00:03]} 51. Qd4+ {[%clk 0:00:12]}  Kg8 {[%clk 0:00:04]} 52. Qb4 {[%clk 0:00:12]}  Qd7 {[%clk 0:00:03]} 53. Kh2 {[%clk 0:00:11]}  Qc7+ {[%clk 0:00:04]} 54. Kg1 {[%clk 0:00:10]}  Qd7 {[%clk 0:00:04]} 55. Kh2 {[%clk 0:00:11]}  Kg7 {[%clk 0:00:05]} 56. Kg1 {[%clk 0:00:11]}  Qc6 {[%clk 0:00:04]} 57. Qd4+ {[%clk 0:00:10]}  Kg8 {[%clk 0:00:04]} 58. Qb4 {[%clk 0:00:11]}  Kh7 {[%clk 0:00:05]} 59. Qf4 {[%clk 0:00:09]}  Qd5 {[%clk 0:00:05]} 60. Kh2 {[%clk 0:00:08]}  Kg7 {[%clk 0:00:04]} 61. h4 {[%clk 0:00:08]}  Qb3 {[%clk 0:00:04]} 62. Qd6 {[%clk 0:00:07]}  Kg8 {[%clk 0:00:04]} 63. Qd8+ {[%clk 0:00:07]}  Kh7 {[%clk 0:00:05]} 64. Qd6 {[%clk 0:00:07]}  Qe6 {[%clk 0:00:04]} 65. Qb4 {[%clk 0:00:06]}  Qc6 {[%clk 0:00:04]} 66. Kg1 {[%clk 0:00:06]}  Kg7 {[%clk 0:00:04]} 67. Kh2 {[%clk 0:00:06]}  Qc7+ {[%clk 0:00:04]} 68. Kg1 {[%clk 0:00:06]}  Qc6 {[%clk 0:00:05]} 69. Kh2 {[%clk 0:00:07]}  Kg8 {[%clk 0:00:06]} 70. Kg1 {[%clk 0:00:07]}  Qd7 {[%clk 0:00:07]} 71. Kh2 {[%clk 0:00:07]}  Qd1 {[%clk 0:00:06]} 72. Qb8+ {[%clk 0:00:06]}  Kg7 {[%clk 0:00:07]} 73. Qb4 {[%clk 0:00:07]}  Qg4 {[%clk 0:00:06]} 74. Qc3+ {[%clk 0:00:06]}  Kh7 {[%clk 0:00:06]} 75. g3 {[%clk 0:00:06]}  Qd7 {[%clk 0:00:06]} 76. Kg2 {[%clk 0:00:06]}  Qb7+ {[%clk 0:00:06]} 77. Kh3 {[%clk 0:00:06]}  Qd5 {[%clk 0:00:07]} 78. Kh2 {[%clk 0:00:06]}  Qa2+ {[%clk 0:00:06]} 79. Kh3 {[%clk 0:00:06]}  Qe6+ {[%clk 0:00:07]} 80. Kh2 {[%clk 0:00:06]}  Qe2+ {[%clk 0:00:08]} 81. Kh3 {[%clk 0:00:06]}  Qd1 {[%clk 0:00:08]} 82. Qe3 {[%clk 0:00:05]}  Qh1# {[%clk 0:00:08]} 0-1


[Site "https://www.chess.com"]